Workbook

Sheet Income statement
A2: Condensed Income Statement
A3: Amounts in NOK million | B3: Q1 2025 | C3: Q2 2025 | D3: YTD Q2 2025 | E3: Q3 2025 | F3: YTD Q3 2025 | G3: Q4 2025 | H3: YTD Q4 2025 | I3: Q1 2026 | J3: Q2 2026 | K3: YTD Q2 2026
A4: Operating revenues | B4: 17176 | C4: 17650 | D4: 34826 | E4: 17946 | F4: 52772 | G4: 18775 | H4: 71547 | I4: 17401 | J4: 16699 | K4: 34100
A5: Operating expenses | B5: -14762 | C5: -15101 | D5: -29863 | E5: -15231 | F5: -45094 | G5: -16074 | H5: -61168 | I5: -15003 | J5: -14271 | K5: -29274
A6: Depreciation | B6: -656 | C6: -676 | D6: -1332 | E6: -676 | F6: -2008 | G6: -724 | H6: -2732 | I6: -662 | J6: -654 | K6: -1316
A7: EBIT (adj.) | B7: 1758 | C7: 1873 | D7: 3631 | E7: 2039 | F7: 5670 | G7: 1977 | H7: 7647 | I7: 1736 | J7: 1774 | K7: 3510
A8: Other income and expenses | B8: -8 | C8: -1 | D8: -9 | E8: -401 | F8: -410 | G8: -151 | H8: -561 | I8: -45 | J8: 97 | K8: 52
A9: Operating profit | B9: 1750 | C9: 1872 | D9: 3622 | E9: 1638 | F9: 5260 | G9: 1826 | H9: 7086 | I9: 1691 | J9: 1871 | K9: 3562
A10: Profit from associates and joint ventures | B10: 651 | C10: 422 | D10: 1073 | E10: 603 | F10: 1676 | G10: 505 | H10: 2181 | I10: 616 | J10: 486 | K10: 1102
A11: Interest, net | B11: -205 | C11: -180 | D11: -385 | E11: -212 | F11: -597 | G11: -157 | H11: -754 | I11: -142 | J11: -170 | K11: -312
A12: Other financial items, net | B12: -35 | C12: -33 | D12: -68 | E12: -32 | F12: -100 | G12: -34 | H12: -134 | I12: -29 | J12: -38 | K12: -67
A13: Profit before taxes | B13: 2161 | C13: 2081 | D13: 4242 | E13: 1997 | F13: 6239 | G13: 2140 | H13: 8379 | I13: 2136 | J13: 2149 | K13: 4285
A14: Taxes | B14: -405 | C14: -382 | D14: -787 | E14: -305 | F14: -1092 | G14: -350 | H14: -1442 | I14: -360 | J14: -360 | K14: -720
A15: Profit for the period for continuing operations | B15: 1756 | C15: 1699 | D15: 3455 | E15: 1692 | F15: 5147 | G15: 1790 | H15: 6937 | I15: 1776 | J15: 1789 | K15: 3565
A16: Discontinued operations | B16: 151 | C16: 4668 | D16: 4819 | E16: 0 | F16: 4819 | G16: 301 | H16: 5120 | I16: 0 | J16: 0 | K16: 0
A17: Profit for the period | B17: 1907 | C17: 6367 | D17: 8274 | E17: 1692 | F17: 9966 | G17: 2091 | H17: 12057 | I17: 1776 | J17: 1789 | K17: 3565
A18: Profit attributable to non-controlling interests | B18: 114 | C18: 146 | D18: 260 | E18: 121 | F18: 381 | G18: 203 | H18: 584 | I18: 87 | J18: 121 | K18: 208
A19: Profit attributable to owners of the parent | B19: 1793 | C19: 6221 | D19: 8014 | E19: 1571 | F19: 9585 | G19: 1888 | H19: 11473 | I19: 1689 | J19: 1668 | K19: 3357
A22: Operating revenues
A23: Amounts in NOK million | B23: Q1 2025 | C23: Q2 2025 | D23: YTD Q2 2025 | E23: Q3 2025 | F23: YTD Q3 2025 | G23: Q4 2025 | H23: YTD Q4 2025 | I23: Q1 2026 | J23: Q2 2026 | K23: YTD Q2 2026
A24: Orkla Foods | B24: 4995 | C24: 5107 | D24: 10102 | E24: 5129 | F24: 15231 | G24: 5633 | H24: 20864 | I24: 5146 | J24: 4799 | K24: 9945
A25: Orkla Snacks | B25: 2409 | C25: 2475 | D25: 4884 | E25: 2546 | F25: 7430 | G25: 3051 | H25: 10481 | I25: 2557 | J25: 2348 | K25: 4905
A26: Orkla Food Ingredients | B26: 4842 | C26: 5470 | D26: 10312 | E26: 5492 | F26: 15804 | G26: 5453 | H26: 21257 | I26: 4898 | J26: 5195 | K26: 10093
A27: Orkla Health | B27: 2031 | C27: 1837 | D27: 3868 | E27: 1958 | F27: 5826 | G27: 1830 | H27: 7656 | I27: 2027 | J27: 1793 | K27: 3820
A28: Orkla India | B28: 780 | C28: 723 | D28: 1503 | E28: 754 | F28: 2257 | G28: 724 | H28: 2981 | I28: 668 | J28: 658 | K28: 1326
A29: The European Pizza Company | B29: 715 | C29: 780 | D29: 1495 | E29: 816 | F29: 2311 | G29: 834 | H29: 3145 | I29: 732 | J29: 732 | K29: 1464
A30: Orkla Home & Personal Care | B30: 726 | C30: 709 | D30: 1435 | E30: 682 | F30: 2117 | G30: 704 | H30: 2821 | I30: 757 | J30: 673 | K30: 1430
A31: Orkla House Care | B31: 467 | C31: 426 | D31: 893 | E31: 432 | F31: 1325 | G31: 331 | H31: 1656 | I31: 478 | J31: 393 | K31: 871
A32: Health and Sports Nutrition Group | B32: 341 | C32: 294 | D32: 635 | E32: 325 | F32: 960 | G32: 328 | H32: 1288 | I32: 361 | J32: 301 | K32: 662
A33: Eliminations Consolidated Portfolio Companies | B33: -251 | C33: -233 | D33: -484 | E33: -218 | F33: -702 | G33: -228 | H33: -930 | I33: -248 | J33: -213 | K33: -461
A34: Consolidated Portfolio Companies | B34: 17055 | C34: 17588 | D34: 34643 | E34: 17916 | F34: 52559 | G34: 18660 | H34: 71219 | I34: 17376 | J34: 16679 | K34: 34055
A35: Orkla ASA & Business Service companies/Eliminations | B35: 16 | C35: 2 | D35: 18 | E35: 5 | F35: 23 | G35: 4 | H35: 27 | I35: 3 | J35: 3 | K35: 6
A36: Consolidated Portfolio Companies incl. Orkla ASA & Business Service companies | B36: 17071 | C36: 17590 | D36: 34661 | E36: 17921 | F36: 52582 | G36: 18664 | H36: 71246 | I36: 17379 | J36: 16682 | K36: 34061
A37: Orkla Real Estate | B37: 152 | C37: 93 | D37: 245 | E37: 57 | F37: 302 | G37: 148 | H37: 450 | I37: 62 | J37: 49 | K37: 111
A38: Eliminations | B38: -47 | C38: -33 | D38: -80 | E38: -32 | F38: -112 | G38: -37 | H38: -149 | I38: -40 | J38: -32 | K38: -72
A39: Orkla Group | B39: 17176 | C39: 17650 | D39: 34826 | E39: 17946 | F39: 52772 | G39: 18775 | H39: 71547 | I39: 17401 | J39: 16699 | K39: 34100
A42: Operating profit - EBIT (adj.)
A43: Amounts in NOK million | B43: Q1 2025 | C43: Q2 2025 | D43: YTD Q2 2025 | E43: Q3 2025 | F43: YTD Q3 2025 | G43: Q4 2025 | H43: YTD Q4 2025 | I43: Q1 2026 | J43: Q2 2026 | K43: YTD Q2 2026
A44: Orkla Foods | B44: 589 | C44: 614 | D44: 1203 | E44: 700 | F44: 1903 | G44: 718 | H44: 2621 | I44: 614 | J44: 606 | K44: 1220
A45: Orkla Snacks | B45: 260 | C45: 263 | D45: 523 | E45: 313 | F45: 836 | G45: 493 | H45: 1329 | I45: 308 | J45: 277 | K45: 585
A46: Orkla Food Ingredients | B46: 280 | C46: 460 | D46: 740 | E46: 413 | F46: 1153 | G46: 353 | H46: 1506 | I46: 289 | J46: 392 | K46: 681
A47: Orkla Health | B47: 310 | C47: 209 | D47: 519 | E47: 248 | F47: 767 | G47: 145 | H47: 912 | I47: 218 | J47: 187 | K47: 405
A48: Orkla India | B48: 131 | C48: 131 | D48: 262 | E48: 122 | F48: 384 | G48: 102 | H48: 486 | I48: 101 | J48: 104 | K48: 205
A49: The European Pizza Company | B49: 77 | C49: 100 | D49: 177 | E49: 108 | F49: 285 | G49: 97 | H49: 382 | I49: 85 | J49: 99 | K49: 184
A50: Orkla Home & Personal Care | B50: 87 | C50: 89 | D50: 176 | E50: 108 | F50: 284 | G50: 67 | H50: 351 | I50: 96 | J50: 95 | K50: 191
A51: Orkla House Care | B51: 77 | C51: 49 | D51: 126 | E51: 71 | F51: 197 | G51: 18 | H51: 215 | I51: 85 | J51: 53 | K51: 138
A52: Health and Sports Nutrition | B52: 20 | C52: 8 | D52: 28 | E52: 15 | F52: 43 | G52: 11 | H52: 54 | I52: 26 | J52: 19 | K52: 45
A53: Eliminations Consolidated Portfolio Companies | B53: 0 | C53: 0 | D53: 0 | E53: 0 | F53: 0 | G53: 0 | H53: 0 | I53: 0 | J53: 0 | K53: 0
A54: Consolidated Portfolio Companies | B54: 1831 | C54: 1923 | D54: 3754 | E54: 2098 | F54: 5852 | G54: 2004 | H54: 7856 | I54: 1822 | J54: 1832 | K54: 3654
A55: Orkla ASA & Business Service companies | B55: -103 | C55: -75 | D55: -178 | E55: -66 | F55: -244 | G55: -84 | H55: -328 | I55: -95 | J55: -65 | K55: -160
A56: Consolidated Portfolio Companies incl. Orkla ASA & Business Service companies | B56: 1728 | C56: 1848 | D56: 3576 | E56: 2032 | F56: 5608 | G56: 1920 | H56: 7528 | I56: 1727 | J56: 1767 | K56: 3494
A57: Orkla Real Estate | B57: 30 | C57: 25 | D57: 55 | E57: 7 | F57: 62 | G57: 57 | H57: 119 | I57: 9 | J57: 7 | K57: 16
A58: Orkla Group | B58: 1758 | C58: 1873 | D58: 3631 | E58: 2039 | F58: 5670 | G58: 1977 | H58: 7647 | I58: 1736 | J58: 1774 | K58: 3510

Sheet Cash flow
B3: Cash Flow Orkla Group
B4: Orkla format
C5: 1.1-30.06 | D5: 1.1-30.06 | E5: 1.1-31.12
B6: Amounts in NOK million | C6: 2026 | D6: 2025 | E6: 2025
B8: EBIT (adj.) | C8: 3510 | D8: 3631 | E8: 7647
B9: Depreciation | C9: 1317 | D9: 1332 | E9: 2732
B10: Changes in net working capital | C10: -1348 | D10: -1255 | E10: 280
B11: Net replacement investments | C11: -1198 | D11: -1242 | E11: -2676
B12: Cash flow effect from "Other income and expenses" and pensions | C12: -213 | D12: -18 | E12: -233
B13: Cash flow from operations | C13: =SUM(C8:C12) -> 2068 | D13: =SUM(D8:D12) -> 2448 | E13: 7750
B14: Taxes paid | C14: -721 | D14: -695 | E14: -1352
B15: Dividends received, financial items and other payments | C15: 219 | D15: 24 | E15: 547
B16: Cash flow before capital allocation | C16: =SUM(C13:C15) -> 1566 | D16: =SUM(D13:D15) -> 1777 | E16: 6945
B17: Dividends paid and purchase/sale of treasury shares | C17: -8176 | D17: -10366 | E17: -11222
B18: Expansion investments | C18: -391 | D18: -172 | E18: -678
B19: Acquisitions of companies (enterprise value) | C19: -666 | D19: -462 | E19: -592
B20: Divestments of companies (enterprise value)/ discontinued operations | C20: 526 | D20: 5481 | E20: 7498
B21: Net cash flow | C21: =SUM(C16:C20) -> -7141 | D21: =SUM(D16:D20) -> -3742 | E21: =SUM(E16:E20) -> 1951
B22: Currency effects of net interest-bearing liabilities | C22: 625 | D22: -41 | E22: -126
B23: Change in net interest-bearing liabilities | C23: =SUM(C21:C22) -> -6516 | D23: =SUM(D21:D22) -> -3783 | E23: 1825
B24: Net interest-bearing liabilities | C24: 20683 | D24: 19775 | E24: 14167

Sheet Balance sheet
B3: Group Balance Sheet
C4: 30.06 | D4: 31.12
B5: Amounts in NOK million | C5: 2026 | D5: 2025
B7: Assets:
B8: Intangible assets | C8: 35114 | D8: 36098
B9: Property, plant and equipment | C9: 19016 | D9: 19728
B10: Associates, joint ventures and other financial assets | C10: 10136 | D10: 10031
B11: Non-current assets | C11: =SUM(C8:C10) -> 64266 | D11: =SUM(D8:D10) -> 65857
B12: Inventories | C12: 10252 | D12: 9944
B13: Trade receivables | C13: 9274 | D13: 9119
B14: Other receivables and financial assets | C14: 2276 | D14: 1734
B15: Cash and cash equivalents | C15: 1447 | D15: 2044
B16: Current assets | C16: =SUM(C12:C15) -> 23249 | D16: =SUM(D12:D15) -> 22841
B17: Total assets | C17: =C11+C16 -> 87515 | D17: =D11+D16 -> 88698
B19: Equity and debt:
B20: Paid-in equity | C20: 1934 | D20: 1959
B21: Retained equity | C21: 40409 | D21: 46705
B22: Non-controlling interests | C22: 3507 | D22: 3483
B23: Equity | C23: =SUM(C20:C22) -> 45850 | D23: =SUM(D20:D22) -> 52147
B24: Provisions and other non-current liabilities | C24: 5354 | D24: 5571
B25: Non-current interest-bearing liabilities | C25: 15629 | D25: 14965
B26: Current interest-bearing liabilities | C26: 7042 | D26: 1777
B27: Trade payables | C27: 9225 | D27: 9442
B28: Other current liabilities | C28: 4415 | D28: 4796
B29: Equity and liabilities | C29: =SUM(C23:C28) -> 87515 | D29: =SUM(D23:D28) -> 88698
B31: Equity ratio: | C31: =C23/C29 -> 0.5239101868 | D31: =D23/D29 -> 0.5879163003
